fUST/lending_fUST_20250811
["ID","MTS","AMOUNT","RATE_DAILY","PERIOD"]
[378451807,1754869845238,-229.952662,0.00021118,2]
[378451809,1754869845249,-229.952662,0.00021118,2]
[378451811,1754869845259,-151.0,0.00021118,2]
[378451813,1754869845269,-500.0,0.00021121,2]
[378451815,1754869845279,-1000.0,0.00021121,2]
[378451817,1754869845288,-1000.0,0.00021121,2]
[378451830,1754869845396,-1014.50305425,0.00021121,2]
[378451831,1754869845406,-1000.0,0.00021121,2]
[378451834,1754869845416,-1000.0,0.00021121,2]
[378451835,1754869845426,-1000.0,0.00021121,2]
[378451838,1754869845436,-152.039706,0.00021128,2]
[378451840,1754869845445,-151.0,0.00021128,2]
[378451841,1754869845455,-151.0,0.00021128,2]
[378451844,1754869845465,-345.317761,0.00021128,2]
[378451846,1754869845475,-345.317761,0.00021128,2]
[378451848,1754869845485,-151.0,0.00021128,2]
[378451849,1754869845495,-151.0,0.00021128,2]
[378451851,1754869845505,-151.0,0.00021146,2]
[378451853,1754869845515,-151.0,0.00021146,2]
[378451855,1754869845524,-160.378559,0.00021161,2]
[378451857,1754869845534,-151.0,0.00021161,2]
[378451859,1754869845544,-500.0,0.00021161,2]
[378451861,1754869845554,-460.0,0.00021162,2]
[378451863,1754869845563,-460.0,0.00021162,2]
[378451865,1754869845572,-151.0,0.0002117,2]
[378451867,1754869845582,-151.0,0.0002117,2]
[378451869,1754869845591,-151.0,0.0002117,2]
[378451871,1754869845600,-151.0,0.0002117,2]
[378451873,1754869845609,-551.422339,0.0002117,2]
[378451875,1754869845618,-551.422339,0.0002117,2]
[378451877,1754869845627,-151.0,0.0002117,2]
[378451879,1754869845637,-151.0,0.0002117,2]
[378451881,1754869845646,-500.0,0.0002117,2]
[378451883,1754869845655,-151.0,0.00021171,2]
[378451885,1754869845665,-152.537099,0.00021171,2]
[378451887,1754869845674,-151.0,0.00021171,2]
[378451889,1754869845683,-151.0,0.00021171,2]
[378451891,1754869845692,-151.0,0.00021171,2]
[378451893,1754869845701,-151.0,0.00021171,2]
[378451895,1754869845710,-151.0,0.00021171,2]
[378451897,1754869845719,-551.422339,0.00021171,2]
[378451899,1754869845729,-551.422339,0.00021171,2]
[378451901,1754869845738,-551.422339,0.00021171,2]
[378451903,1754869845748,-551.422339,0.00021171,2]
[378451905,1754869845757,-551.422339,0.00021171,2]
[378451907,1754869845766,-551.422339,0.00021171,2]
[378451909,1754869845776,-151.0,0.00021171,2]
[378451911,1754869845785,-215.710331,0.00021171,2]
[378451913,1754869845794,-318.247902,0.00021171,2]
[378451915,1754869845803,-318.247902,0.00021171,2]
[378451917,1754869845817,-318.247902,0.00021171,2]
[378451919,1754869845827,-318.247902,0.00021171,2]
[378451921,1754869845836,-318.247902,0.00021171,2]
[378451923,1754869845845,-318.247902,0.00021171,2]
[378451925,1754869845857,-318.247902,0.00021171,2]
[378451927,1754869845866,-318.247902,0.00021171,2]
[378451929,1754869845875,-318.247902,0.00021171,2]
[378451931,1754869845887,-318.247902,0.00021171,2]
[378451934,1754869845896,-151.0,0.00021171,2]
[378451936,1754869845906,-230.683006,0.00021171,2]
[378451938,1754869845915,-151.0,0.00021171,2]
[378451940,1754869845924,-151.0,0.00021171,2]
[378451942,1754869845933,-234.372719,0.00021171,2]
[378451944,1754869845942,-151.0,0.00021171,2]
[378451946,1754869845951,-151.0,0.00021171,2]
[378451948,1754869845960,-151.0,0.00021171,2]
[378451950,1754869845969,-151.0,0.00021171,2]
[378451952,1754869845979,-151.0,0.00021171,2]
[378451954,1754869845988,-345.317761,0.00021171,2]
[378451956,1754869845997,-345.317761,0.00021171,2]
[378451958,1754869846006,-345.317761,0.00021171,2]
[378451960,1754869846014,-345.317761,0.00021171,2]
[378451962,1754869846023,-345.317761,0.00021171,2]
[378451964,1754869846033,-345.317761,0.00021171,2]
[378451966,1754869846042,-345.317761,0.00021171,2]
[378451968,1754869846051,-345.317761,0.00021171,2]
[378451970,1754869846060,-345.317761,0.00021171,2]
[378451972,1754869846069,-345.317761,0.00021171,2]
[378451974,1754869846078,-350.491345,0.00021171,2]
[378451976,1754869846088,-350.491345,0.00021171,2]
[378451978,1754869846101,-350.491345,0.00021171,2]
[378451980,1754869846111,-350.491345,0.00021171,2]
[378451982,1754869846120,-350.491345,0.00021171,2]
[378451984,1754869846129,-350.491345,0.00021171,2]
[378451986,1754869846139,-350.491345,0.00021171,2]
[378451988,1754869846148,-350.491345,0.00021171,2]
[378451990,1754869846158,-350.491345,0.00021171,2]
[378451992,1754869846167,-350.491345,0.00021171,2]
[378451994,1754869846176,-151.0,0.00021171,2]
[378451996,1754869846185,-151.0,0.00021171,2]
[378451998,1754869846195,-151.0,0.00021171,2]
[378452000,1754869846203,-151.0,0.00021171,2]
[378452002,1754869846213,-151.0,0.00021171,2]
[378452004,1754869846222,-186.483508,0.00021171,2]
[378452006,1754869846231,-151.0,0.00021171,2]
[378452008,1754869846240,-270.605208,0.00021171,2]
[378452010,1754869846250,-229.952662,0.00021171,2]
[378452012,1754869846260,-229.952662,0.00021171,2]
[378452014,1754869846269,-229.952662,0.00021171,2]
[378452016,1754869846279,-229.952662,0.00021171,2]
[378452018,1754869846288,-229.952662,0.00021171,2]
[378452020,1754869846298,-229.952662,0.00021171,2]
[378452022,1754869846307,-151.0,0.00021171,2]
[378452024,1754869846316,-151.0,0.00021171,2]
[378452026,1754869846325,-151.0,0.00021171,2]
[378452028,1754869846335,-460.0,0.00021173,2]
[378452030,1754869846345,-679.04,0.00021173,2]
[378452032,1754869846354,-460.0,0.00021173,2]
[378452034,1754869846363,-504.72535842,0.00021173,2]
[378452036,1754869846372,-1052.11,0.00021173,2]
[378452038,1754869846382,-495.21,0.00021173,2]
[378452040,1754869846391,-460.0,0.00021173,2]
[378452042,1754869846400,-460.0,0.00021173,2]
[378452044,1754869846409,-524.55285199,0.00021174,2]
[378452046,1754869846418,-460.0,0.00021174,2]
[378452048,1754869846427,-460.0,0.00021174,2]
[378452050,1754869846436,-460.0,0.00021174,2]
[378452052,1754869846446,-460.0,0.00021174,2]
[378452054,1754869846455,-460.0,0.00021174,2]
[378452056,1754869846464,-460.0,0.00021175,2]
[378452058,1754869846473,-460.0,0.00021175,2]
[378452060,1754869846483,-460.0,0.00021175,2]
[378452062,1754869846492,-460.0,0.00021175,2]
[378452064,1754869846504,-460.0,0.00021175,2]
[378452066,1754869846513,-460.0,0.00021175,2]
[378452068,1754869846522,-460.0,0.00021175,2]
[378452070,1754869846531,-460.0,0.00021175,2]
[378452072,1754869846540,-534.80383604,0.00021175,2]
[378452074,1754869846549,-460.0,0.00021175,2]
[378452076,1754869846559,-151.0,0.00021176,2]
[378452078,1754869846568,-151.0,0.00021176,2]
[378452080,1754869846577,-900.42,0.00021176,2]
[378452082,1754869846586,-460.0,0.00021176,2]
[378452084,1754869846596,-460.0,0.00021176,2]
[378452086,1754869846605,-460.0,0.00021176,2]
[378452088,1754869846614,-460.0,0.00021176,2]
[378452090,1754869846623,-1232.06,0.00021183,2]
[378452092,1754869846632,-500.0,0.00021183,2]
[378452094,1754869846641,-460.0,0.00021183,2]
[378452096,1754869846650,-151.0,0.00021195,2]
[378452098,1754869846659,-151.0,0.00021195,2]
[378452100,1754869846667,-151.0,0.00021195,2]
[378452101,1754869846676,-551.422339,0.00021195,2]
[378452103,1754869846685,-551.422339,0.00021195,2]
[378452105,1754869846694,-318.247902,0.00021195,2]
[378452107,1754869846703,-318.247902,0.00021195,2]
[378452109,1754869846713,-151.0,0.00021195,2]
[378452111,1754869846722,-345.317761,0.00021195,2]
[378452113,1754869846732,-345.317761,0.00021195,2]
[378452115,1754869846741,-350.491345,0.00021195,2]
[378452118,1754869846751,-350.491345,0.00021195,2]
[378452119,1754869846760,-229.952662,0.00021195,2]
[378452121,1754869846769,-229.952662,0.00021195,2]
[378452124,1754869846779,-151.0,0.00021195,2]
[378452125,1754869846788,-460.0,0.00021197,2]
[378452127,1754869846797,-191.51568422,0.00021221,2]
[378452129,1754869846810,-1000.0,0.00021221,2]
[378452131,1754869846819,-200.0,0.00021264,15]
[378452133,1754869846828,-300.0,0.00021264,15]
[378452135,1754869846837,-229.952662,0.00021281,2]
[378452137,1754869846846,-229.952662,0.00021281,2]
[378452139,1754869846855,-155.174896,0.00021281,2]
[378452141,1754869846865,-843.0869304,0.00021288,2]
[378452143,1754869846874,-231.96268195,0.00021288,2]
[378452145,1754869846883,-216.64838636,0.00021288,2]
[378452147,1754869846892,-215.44987349,0.00021288,2]
[378452149,1754869846901,-461.62346162,0.00021288,2]
[378452151,1754869846910,-160.0,0.00021288,2]
[378452153,1754869846919,-160.0,0.00021288,2]
[378452155,1754869846928,-312.16666667,0.00021288,2]
[378452157,1754869846937,-160.0,0.0002129,2]
[378452159,1754869846946,-160.0,0.0002129,2]
[378452161,1754869846955,-160.0,0.0002129,2]
[378452163,1754869846964,-12668.57659669,0.0002129,2]
[378452165,1754869846973,-500.0,0.00021322,2]
[378452167,1754869846982,-151.0,0.00021327,2]
[378452169,1754869846991,-229.952662,0.00021332,2]
[378452171,1754869847001,-229.952662,0.00021332,2]
[378452173,1754869847010,-318.247902,0.00021334,2]
[378452175,1754869847019,-318.247902,0.00021334,2]
[378452178,1754869847037,-151.0,0.00021334,2]
[378452180,1754869847048,-350.491345,0.00021334,2]
[378452182,1754869847057,-350.491345,0.00021334,2]
[378452184,1754869847067,-345.317761,0.00021337,2]
[378452186,1754869847076,-345.317761,0.00021337,2]
[378452188,1754869847085,-460.0,0.00021348,2]
[378452190,1754869847095,-460.0,0.00021348,2]
[378452192,1754869847105,-460.0,0.00021348,2]
[378452194,1754869847114,-460.0,0.00021348,2]
[378452196,1754869847123,-315.59,0.00021348,2]
[378452198,1754869847133,-460.0,0.00021348,2]
[378452200,1754869847142,-460.0,0.00021348,2]
[378452202,1754869847151,-264.37,0.00021348,2]
[378452204,1754869847161,-460.0,0.00021348,2]
[378452206,1754869847171,-460.0,0.00021348,2]
[378452207,1754869847180,-595.17,0.00021348,2]
[378452208,1754869847190,-460.0,0.00021348,2]
[378452209,1754869847200,-460.0,0.00021348,2]
[378452210,1754869847209,-278.0,0.00021408,2]
[378452211,1754869847218,-460.0,0.00021436,2]
[378452212,1754869847228,-460.0,0.00021436,2]
[378452213,1754869847237,-460.0,0.00021447,2]
[378452215,1754869847247,-679.04,0.00021447,2]
[378452217,1754869847257,-460.0,0.00021447,2]
[378452219,1754869847267,-1052.11,0.00021447,2]
[378452221,1754869847276,-423.16,0.00021447,2]
[378452223,1754869847286,-460.0,0.00021447,2]
[378452225,1754869847295,-460.0,0.00021448,2]
[378452227,1754869847305,-460.0,0.00021448,2]
[378452229,1754869847315,-460.0,0.00021448,2]
[378452231,1754869847325,-460.0,0.00021448,2]
[378452233,1754869847334,-460.0,0.00021448,2]
[378452235,1754869847344,-460.0,0.00021449,2]
[378452237,1754869847354,-503.08,0.00021449,2]
[378452239,1754869847366,-460.0,0.00021449,2]
[378452241,1754869847376,-460.0,0.00021449,2]
[378452243,1754869847386,-176.2,0.00021449,2]
[378452245,1754869847396,-460.0,0.00021449,2]
[378452269,1754869847616,-460.0,0.00021449,2]
[378452271,1754869847627,-460.0,0.00021449,2]
[378452273,1754869847637,-460.0,0.00021449,2]
[378452275,1754869847648,-151.0,0.0002145,2]
[378452277,1754869847658,-198.0,0.0002145,2]
[378452292,1754869847782,-900.42,0.0002145,2]
[378452294,1754869847803,-460.0,0.0002145,2]
[378452296,1754869847815,-460.0,0.0002145,2]
[378452298,1754869847825,-460.0,0.0002145,2]
[378452300,1754869847834,-460.0,0.0002145,2]
[378452302,1754869847843,-500.0,0.00021456,2]
[378452304,1754869847854,-1232.06,0.00021457,2]
[378452306,1754869847863,-460.0,0.00021457,2]
[378452308,1754869847873,-460.0,0.00021471,2]
[378452310,1754869847882,-278.0,0.00021493,2]
[378452312,1754869847893,-199.498351,0.00021501,2]
[378452314,1754869847903,-551.422339,0.00021501,2]
[378452316,1754869847912,-551.422339,0.00021501,2]
[378452318,1754869847922,-318.247902,0.00021524,2]
[378452320,1754869847931,-318.247896,0.00021524,2]
[378452322,1754869847941,-350.491345,0.00021524,2]
[378452324,1754869847951,-350.491341,0.00021524,2]
[378452326,1754869847961,-345.317761,0.00021529,2]
[378452328,1754869847971,-345.317759,0.00021529,2]
[378452330,1754869847981,-278.0,0.00021543,2]
[378452332,1754869847990,-153.263495,0.00021555,2]
[378452334,1754869847999,-151.0,0.00021555,2]
[378452336,1754869848008,-151.0,0.00021555,2]
[378452338,1754869848018,-460.0,0.00021622,2]
[378452340,1754869848028,-460.0,0.00021622,2]
[378452342,1754869848037,-460.0,0.00021622,2]
[378452344,1754869848047,-460.0,0.00021622,2]
[378452346,1754869848057,-342.54,0.00021622,2]
[378452347,1754869848067,-460.0,0.00021622,2]
[378452349,1754869848077,-460.0,0.00021622,2]
[378452352,1754869848087,-595.17,0.00021622,2]
[378452354,1754869848097,-460.0,0.00021622,2]
[378452355,1754869848107,-460.0,0.00021622,2]
[378452358,1754869848116,-500.0,0.00021623,2]
[378452360,1754869848126,-3042.01667372,0.00021655,2]
[378452362,1754869848135,-210.882945,0.00021655,2]
[378452363,1754869848145,-1500.0,0.00021668,2]
[378452365,1754869848154,-1500.0,0.00021668,2]
[378452368,1754869848165,-500.0,0.00021668,2]
[378452370,1754869848175,-151.0,0.0002171,2]
[378452371,1754869848185,-19187.29552238,0.0002171,2]
[378452374,1754869848194,-460.0,0.0002171,2]
[378452376,1754869848204,-460.0,0.0002171,2]
[378452378,1754869848214,-433.44831167,0.00021721,2]
[378452380,1754869848223,-679.04,0.00021721,2]
[378452382,1754869848232,-460.0,0.00021721,2]
[378452384,1754869848242,-1052.11,0.00021721,2]
[378452386,1754869848252,-460.0,0.00021721,2]
[378452388,1754869848262,-460.0,0.00021722,2]
[378452390,1754869848272,-460.0,0.00021722,2]
[378452392,1754869848282,-460.0,0.00021722,2]
[378452394,1754869848291,-460.0,0.00021722,2]
[378452396,1754869848300,-403.53,0.00021722,2]
[378452398,1754869848310,-460.0,0.00021723,2]
[378452400,1754869848319,-460.0,0.00021723,2]
[378452401,1754869848329,-460.0,0.00021723,2]
[378452403,1754869848338,-428.2602509,0.00021723,2]
[378452406,1754869848349,-460.0,0.00021723,2]
[378452407,1754869848358,-503.49,0.00021723,2]
[378452409,1754869848368,-245.0,0.00021724,2]
[378452412,1754869848377,-900.42,0.00021724,2]
[378452414,1754869848388,-460.0,0.00021724,2]
[378452416,1754869848398,-281.26,0.00021724,2]
[378452417,1754869848407,-460.0,0.00021724,2]
[378452419,1754869848416,-1232.06,0.00021731,2]
[378452422,1754869848426,-162.19,0.00021731,2]
[378452424,1754869848435,-551.422339,0.00021736,2]
[378452426,1754869848444,-551.422339,0.00021736,2]
[378452427,1754869848453,-606.42121849,0.00021738,2]
[378452429,1754869848463,-500.0,0.00021738,2]
[378452432,1754869848472,-150.0,0.00021738,2]
[378452434,1754869848482,-535.54312747,0.00021738,2]
[378452436,1754869848491,-500.0,0.00021738,2]
[378452438,1754869848501,-500.98868041,0.00021738,2]
[378452440,1754869848511,-500.0,0.00021738,2]
[378452442,1754869848520,-500.0,0.00021738,2]
[378452443,1754869848530,-500.0,0.00021738,2]
[378452445,1754869848539,-500.0,0.00021738,2]
[378452447,1754869848548,-258.4,0.00021738,2]
[378452450,1754869848558,-500.0,0.00021738,2]
[378452452,1754869848567,-500.0,0.00021738,2]
[378452453,1754869848576,-500.0,0.00021738,2]
[378452456,1754869848586,-500.0,0.00021738,2]
[378452458,1754869848595,-500.0,0.00021738,2]
[378452460,1754869848604,-500.0,0.00021738,2]
[378452462,1754869848614,-500.0,0.00021738,2]
[378452464,1754869848623,-500.0,0.00021738,2]
[378452465,1754869848632,-500.0,0.00021738,2]
[378452467,1754869848642,-500.0,0.00021738,2]
[378452470,1754869848652,-500.0,0.00021738,2]
[378452472,1754869848661,-500.0,0.00021738,2]
[378452474,1754869848671,-500.0,0.00021738,2]
[378452476,1754869848679,-645.24671407,0.00021738,2]
[378452478,1754869848688,-500.0,0.00021738,2]
[378452480,1754869848698,-500.0,0.00021738,2]
[378452482,1754869848706,-500.0,0.00021738,2]
[378452483,1754869848716,-500.0,0.00021738,2]
[378452485,1754869848725,-500.0,0.00021738,2]
[378452487,1754869848734,-500.0,0.00021738,2]
[378452489,1754869848744,-500.0,0.00021738,2]
[378452491,1754869848753,-500.0,0.00021738,2]
[378452494,1754869848762,-500.0,0.00021738,2]
[378452495,1754869848772,-500.0,0.00021738,2]
[378452497,1754869848781,-500.0,0.00021738,2]
[378452500,1754869848791,-500.0,0.00021738,2]
[378452502,1754869848800,-500.46559542,0.00021738,2]
[378452504,1754869848811,-500.0,0.00021738,2]
[378452505,1754869848821,-500.0,0.00021744,2]
[378452507,1754869848830,-460.0,0.00021745,2]
[378452509,1754869848839,-1500.0,0.00021768,2]
[378452510,1754869848847,-278.0,0.00021824,2]
[378452511,1754869848856,-2389.41337893,0.00021829,2]
[378452513,1754869848866,-278.0,0.00021859,2]
[378452515,1754869848875,-1680.0,0.0002187,2]
[378452517,1754869848884,-160.0,0.00021882,2]
[378452519,1754869848893,-1975.48,0.00021884,3]
[378452521,1754869848902,-987.74,0.00021884,3]
[378452522,1754869848911,-493.86,0.00021884,3]
[378452523,1754869848920,-460.0,0.00021896,2]
[378452524,1754869848929,-460.0,0.00021896,2]
[378452526,1754869848939,-460.0,0.00021896,2]
[378452528,1754869848948,-192.62345826,0.00021896,2]
[378452530,1754869848957,-408.36,0.00021896,2]
[378452531,1754869848966,-517.76,0.00021896,2]
[378452532,1754869848975,-595.17,0.00021896,2]
[378452533,1754869848985,-538.75,0.00021896,2]
[378452534,1754869848994,-460.0,0.00021896,2]
[378452535,1754869849003,-2150.0,0.00021911,2]
[378452536,1754869849012,-636.0,0.00021911,2]
[378452537,1754869849021,-971.0,0.00021911,2]
[378452538,1754869849030,-151.0,0.00021917,2]
[378452539,1754869849039,-151.0,0.00021917,2]
[378452540,1754869849048,-551.422339,0.00021917,2]
[378452541,1754869849057,-551.422344,0.00021917,2]
[378452542,1754869849066,-500.0,0.00021917,2]
[378452543,1754869849075,-500.0,0.00021917,2]
[378452544,1754869849085,-7514.08,0.00021917,2]
[378452545,1754869849094,-151.0,0.00021918,2]
[378452546,1754869849104,-151.0,0.00021918,2]
[378452547,1754869849113,-151.0,0.00021918,2]
[378452548,1754869849123,-151.0,0.00021918,2]
[378452549,1754869849132,-151.0,0.00021918,2]
[378452550,1754869849142,-151.0,0.00021918,2]
[378452551,1754869849151,-238.659008,0.00021918,2]
[378452552,1754869849160,-1327.5605296,0.00021918,7]
[378452553,1754869849169,-278.0,0.00021951,2]
[378452554,1754869849178,-500.0,0.00021973,2]
[378452555,1754869849187,-460.0,0.00021984,2]
[378452556,1754869849196,-460.0,0.00021984,2]
[378452557,1754869849206,-679.04,0.00021995,2]
[378452558,1754869849215,-460.0,0.00021995,2]
[378452559,1754869849225,-1052.11,0.00021995,2]
[378452560,1754869849234,-460.0,0.00021995,2]
[378452561,1754869849243,-226.47541085,0.00021996,2]
[378452562,1754869849252,-460.0,0.00021996,2]
[378452563,1754869849261,-460.0,0.00021996,2]
[378452564,1754869849271,-460.0,0.00021996,2]
[378452565,1754869849280,-487.96,0.00021997,2]
[378452566,1754869849290,-460.0,0.00021997,2]
[378452567,1754869849299,-460.0,0.00021997,2]
[378452568,1754869849308,-460.0,0.00021997,2]
[378452569,1754869849318,-900.42,0.00021998,2]
[378452570,1754869849327,-460.0,0.00021998,2]
[378452571,1754869849336,-460.0,0.00021998,2]
[378452572,1754869849346,-217.06,0.00022,2]
[378452573,1754869849355,-166.0,0.00022,2]
[378452574,1754869849364,-1232.06,0.00022005,2]
[378452575,1754869849373,-500.0,0.00022005,2]
[378452576,1754869849383,-976.4,0.00022007,2]
[378452577,1754869849392,-278.0,0.00022014,2]
[378452578,1754869849401,-460.0,0.00022019,2]
[378452579,1754869849411,-151.0,0.00022028,7]
[378452580,1754869849421,-151.0,0.00022028,7]
[378452581,1754869849430,-151.0,0.0002203,7]
[378452582,1754869849438,-151.0,0.0002203,7]
[378452583,1754869849448,-278.0,0.00022033,2]
[378452584,1754869849457,-420.0,0.00022045,2]
[378452585,1754869849466,-278.0,0.00022066,2]
[378452586,1754869849475,-4898.75190724,0.00022113,2]
[378452587,1754869849484,-1108.0,0.00022151,2]
[378452588,1754869849493,-460.0,0.0002217,2]
[378452589,1754869849502,-460.0,0.0002217,2]
[378452590,1754869849511,-384.51348225,0.0002217,2]
[378452591,1754869849520,-595.17,0.0002217,2]
[378452592,1754869849530,-460.0,0.0002217,2]
[378452593,1754869849539,-500.0,0.00022182,2]
[378452594,1754869849548,-166.0,0.00022192,7]
[378452595,1754869849558,-500.0,0.00022216,2]
[378452596,1754869849567,-1256.82829048,0.00022216,2]
[378452598,1754869849576,-278.0,0.00022221,2]
[378452600,1754869849585,-278.0,0.00022233,2]
[378452601,1754869849595,-168.0,0.0002224,2]
[378452603,1754869849604,-373.13,0.00022258,2]
[378452604,1754869849613,-432.54220936,0.00022258,2]
[378452605,1754869849622,-679.04,0.00022269,2]
[378452607,1754869849631,-460.0,0.00022269,2]
[378452609,1754869849640,-1052.11,0.00022269,2]
[378452610,1754869849649,-460.0,0.00022269,2]
[378452611,1754869849659,-976.4,0.0002227,2]
[378452612,1754869849668,-460.0,0.0002227,2]
[378452613,1754869849677,-460.0,0.0002227,2]
[378452614,1754869849772,-448.56,0.0002227,2]
[378452615,1754869849782,-233.8,0.00022271,2]
[378452616,1754869849792,-460.0,0.00022271,2]
[378452617,1754869849812,-500.0,0.00022271,2]
[378452618,1754869849832,-500.0,0.00022271,2]
[378452619,1754869849850,-500.0,0.00022271,2]
[378452620,1754869849860,-429.2842818,0.00022271,2]
[378452621,1754869849869,-900.42,0.00022272,2]
[378452622,1754869849879,-460.0,0.00022272,2]
[378452623,1754869849890,-460.0,0.00022272,2]
[378452624,1754869849903,-1232.06,0.00022279,2]
[378452625,1754869849912,-1132.3261331,0.00022286,2]
[378452626,1754869849921,-250.0,0.00022286,2]
[378452627,1754869849930,-1000.0,0.00022286,2]
[378452628,1754869849939,-501.24609581,0.00022286,2]
[378452629,1754869849948,-501.72606197,0.00022286,2]
[378452630,1754869849958,-1000.0,0.00022286,2]
[378452631,1754869849967,-1000.0,0.00022286,2]
[378452632,1754869849976,-1000.0,0.00022286,2]
[378452633,1754869849985,-1000.0,0.00022286,2]
[378452634,1754869849994,-500.0,0.00022286,2]
[378452635,1754869850003,-500.0,0.00022286,2]
[378452636,1754869850013,-1000.0,0.00022286,2]
[378452637,1754869850022,-1000.0,0.00022286,2]
[378452638,1754869850031,-500.0,0.00022286,2]
[378452639,1754869850040,-664.52036037,0.00022286,2]
[378452640,1754869850049,-1000.0,0.00022286,2]
[378452641,1754869850058,-1000.0,0.00022286,2]
[378452642,1754869850067,-152.30229104,0.00022286,2]
[378452643,1754869850076,-1000.0,0.00022286,2]
[378452644,1754869850086,-1041.61335975,0.00022286,2]
[378452645,1754869850096,-500.47453045,0.00022286,2]
[378452646,1754869850105,-692.28689502,0.00022286,2]
[378452647,1754869850114,-1000.0,0.00022286,2]
[378452648,1754869850124,-460.0,0.00022293,2]
[378452649,1754869850133,-392.46337419,0.00022316,2]
[378452650,1754869850142,-151.0,0.00022332,7]
[378452651,1754869850151,-151.0,0.00022332,7]
[378452652,1754869850160,-278.0,0.00022384,2]
[378452653,1754869850169,-500.0,0.00022415,2]
[378452654,1754869850178,-500.0,0.00022415,2]
[378452655,1754869850188,-500.0,0.00022415,2]
[378452656,1754869850197,-500.0,0.00022415,2]
[378452657,1754869850206,-260.0,0.0002243,2]
[378452658,1754869850215,-595.17,0.00022444,2]
[378452659,1754869850225,-460.0,0.00022444,2]
[378452660,1754869850234,-278.0,0.00022522,2]
[378452661,1754869850243,-150.0,0.00022524,2]
[378452662,1754869850252,-150.242,0.00022524,2]
[378452663,1754869850262,-220.329,0.00022524,2]
[378452664,1754869850271,-250.0,0.00022524,2]
[378452665,1754869850280,-260.992,0.00022524,2]
[378452666,1754869850289,-245.0,0.00022524,2]
[378452667,1754869850299,-219.726,0.00022524,2]
[378452668,1754869850309,-976.4,0.00022533,2]
[378452669,1754869850318,-679.04,0.00022543,2]
[378452670,1754869850329,-460.0,0.00022543,2]
[378452671,1754869850338,-1052.11,0.00022543,2]
[378452672,1754869850347,-460.0,0.00022543,2]
[378452673,1754869850357,-460.0,0.00022544,2]
[378452674,1754869850367,-460.0,0.00022544,2]
[378452675,1754869850376,-460.0,0.00022545,2]
[378452676,1754869850385,-900.42,0.00022546,2]
[378452677,1754869850395,-460.0,0.00022546,2]
[378452678,1754869850404,-460.0,0.00022546,2]
[378452679,1754869850413,-1232.06,0.00022553,2]
[378452680,1754869850423,-460.0,0.00022567,2]
[378452681,1754869850432,-168.0,0.00022579,2]
[378452682,1754869850441,-151.0,0.00022589,7]
[378452683,1754869850451,-3347.01060868,0.000226,2]
[378452684,1754869850460,-151.0,0.000226,5]
[378452685,1754869850469,-234.38044112,0.00022685,8]
[378452686,1754869850479,-151.0,0.000227,10]
[378452687,1754869850488,-595.17,0.00022718,2]
[378452688,1754869850497,-460.0,0.00022718,2]
[378452689,1754869850506,-976.4,0.00022796,2]